bitfinex-derivatives/quotes_BTCF0:USTF0_20251108
["timestamp","ask_amount","ask_price","bid_price","bid_amount"]
[1762561996162,0.40638948,103110.0,103100.0,0.72726208]
[1762561998570,0.40638948,103110.0,103100.0,0.64338359]
[1762561999270,0.47541045,103110.0,103100.0,0.64338359]
[1762561999572,0.40638948,103110.0,103100.0,0.64338359]
[1762562000071,0.40638948,103110.0,103100.0,0.28258359]
[1762562000272,0.40638948,103110.0,103100.0,0.18552729]
[1762562000273,0.57245725,103110.0,103100.0,0.18552729]
[1762562000864,0.50343628,103110.0,103100.0,0.18552729]
[1762562001266,0.40638948,103110.0,103100.0,0.18552729]
[1762562001571,0.40638948,103110.0,103100.0,0.28258359]
[1762562001967,0.50343628,103110.0,103100.0,0.28258359]
[1762562002373,0.57245725,103110.0,103100.0,0.28258359]
[1762562003074,0.93325725,103110.0,103100.0,0.18552729]
[1762562003275,0.93325725,103110.0,103100.0,0.02325612]
[1762562003577,0.95051249,103110.0,103100.0,0.00130612]
[1762562004668,0.86423628,103110.0,103100.0,0.00130612]
[1762562005472,0.98554489,103110.0,103100.0,0.00130612]
[1762562005774,0.98554489,103110.0,103100.0,0.09836232]
[1762562006371,0.98554489,103110.0,103100.0,0.00130612]
[1762562007776,0.98554489,103110.0,103100.0,0.09836232]
[1762562009073,0.88849809,103110.0,103100.0,0.11994232]
[1762562009276,0.88849809,103110.0,103100.0,0.28132349]
[1762562009471,0.85362514,103110.0,103100.0,0.28132349]
[1762562010479,0.85362514,103110.0,103100.0,0.34659238]
[1762562010677,0.95067194,103110.0,103100.0,0.34659238]
[1762562011178,0.49282514,103110.0,103100.0,0.34659238]
[1762562011472,0.49286812,103110.0,103100.0,0.34659238]
[1762562011678,0.50343628,103110.0,103100.0,0.14148232]
[1762562011879,0.40638948,103110.0,103100.0,0.14148232]
[1762562012178,0.62474489,103110.0,103100.0,0.14148232]
[1762562012379,0.71126948,103110.0,103100.0,0.14148232]
[1762562012682,0.58996087,103110.0,103100.0,0.14148232]
[1762562016073,0.49291407,103110.0,103100.0,0.14148232]
[1762562016274,0.58996087,103110.0,103100.0,0.14148232]
[1762562019775,0.49291407,103110.0,103100.0,0.14148232]
[1762562020382,0.58996087,103110.0,103100.0,0.25336323]
[1762562021085,0.24996087,103110.0,103100.0,0.25336323]
[1762562021578,0.15291407,103110.0,103100.0,0.25336323]
[1762562023783,0.15291407,103110.0,103100.0,0.61416323]
[1762562024583,0.13562908,103110.0,103100.0,0.61416323]
[1762562024978,0.06638948,103110.0,103100.0,0.61416323]
[1762562025984,0.13563151,103110.0,103100.0,0.61416323]
[1762562027076,0.23267831,103110.0,103100.0,0.04442612]
[1762562027279,0.16343628,103110.0,103100.0,0.13476703]
[1762562027584,0.61076087,103110.0,103100.0,0.13476703]
[1762562028587,0.61076087,103110.0,103100.0,0.11318703]
[1762562028987,0.61076087,103110.0,103100.0,0.21024323]
[1762562030087,0.61076087,103110.0,103100.0,0.23216323]
[1762562030676,0.61076087,103110.0,103100.0,0.25369323]
[1762562031589,0.51371407,103110.0,103100.0,0.25369323]
[1762562032383,0.61076087,103110.0,103100.0,0.25369323]
[1762562032687,0.51371407,103110.0,103100.0,0.25369323]
[1762562033585,0.42718948,103110.0,103100.0,0.25369323]
[1762562033788,0.54849809,103110.0,103100.0,0.25369323]
[1762562034485,0.64554489,103110.0,103100.0,0.25369323]
[1762562034684,0.54849809,103110.0,103100.0,0.25369323]
[1762562035391,0.64554489,103110.0,103100.0,0.25369323]
[1762562036692,0.54849809,103110.0,103100.0,0.25369323]
[1762562037091,0.64554489,103110.0,103100.0,0.25369323]
[1762562038890,0.64554489,103110.0,103100.0,0.15663703]
[1762562039199,0.64554489,103110.0,103100.0,0.25369323]
[1762562039988,0.64554489,103110.0,103100.0,0.23216323]
[1762562040190,0.64554489,103110.0,103100.0,0.21024323]
[1762562040599,0.64554489,103110.0,103100.0,0.23314323]
[1762562040785,0.64554489,103110.0,103100.0,0.00130612]
[1762562040989,0.64554489,103110.0,103100.0,0.09836232]
[1762562041197,0.64554489,103110.0,103100.0,0.12126232]
[1762562041390,0.73220227,103110.0,103100.0,0.23314323]
[1762562041590,0.73220227,103110.0,103100.0,0.21024323]
[1762562041901,0.61089366,103110.0,103100.0,0.23314323]
[1762562042099,0.61089366,103110.0,103100.0,0.14366232]
[1762562042599,0.51384686,103110.0,103100.0,0.14366232]
[1762562042992,0.61089366,103110.0,103100.0,0.14366232]
[1762562043202,0.61089366,103110.0,103100.0,0.25554323]
[1762562044093,0.61089366,103110.0,103100.0,0.14366232]
[1762562044295,0.61089366,103110.0,103100.0,0.25554323]
[1762562044696,0.51384686,103110.0,103100.0,0.25554323]
[1762562045093,0.61089366,103110.0,103100.0,0.25554323]
[1762562045294,0.52423628,103110.0,103100.0,0.25554323]
[1762562045501,0.61089366,103110.0,103100.0,0.25554323]
[1762562045698,0.52423628,103110.0,103100.0,0.25554323]
[1762562045900,0.61089366,103110.0,103100.0,0.25554323]
[1762562046197,0.51384686,103110.0,103100.0,0.25554323]
[1762562046394,0.52423628,103110.0,103100.0,0.25554323]
[1762562048801,0.61089366,103110.0,103100.0,0.25554323]
[1762562051204,0.15304686,103110.0,103100.0,0.62244323]
[1762562051394,0.01115948,103110.0,103100.0,0.97680414]
[1762562051598,0.01115948,103110.0,103100.0,0.75994605]
[1762562051799,0.06896948,103110.0,103100.0,0.64806514]
[1762562052000,0.06896948,103110.0,103100.0,0.64196514]
[1762562052203,0.06896948,103110.0,103100.0,0.61634323]
[1762562052598,0.16601628,103110.0,103100.0,0.51928703]
[1762562052799,0.59614147,103110.0,103100.0,0.25554323]
[1762562053102,0.59614147,103110.0,103100.0,0.15848703]
[1762562054206,0.59614147,103110.0,103100.0,0.04660612]
[1762562054406,0.59614147,103110.0,103100.0,0.25554323]
[1762562055808,0.52681628,103110.0,103100.0,0.25554323]
[1762562056107,0.64812489,103110.0,103100.0,0.25554323]
[1762562057600,0.64812489,103110.0,103100.0,0.14366232]
[1762562057796,0.64812489,103110.0,103100.0,0.25554323]
[1762562058197,0.64812489,103110.0,103100.0,0.00130612]
[1762562058401,0.1548662,103100.0,103090.0,0.40398429]
[1762562058601,0.63697481,103100.0,103090.0,0.40398429]
[1762562059305,0.63697481,103100.0,103090.0,0.29210338]
[1762562059501,0.63697481,103100.0,103090.0,0.40398429]
[1762562060011,0.63697481,103100.0,103090.0,0.40498429]
[1762562060403,0.63697481,103100.0,103090.0,0.40598429]
[1762562061305,0.63697481,103100.0,103090.0,0.40498429]
[1762562061610,0.63797481,103100.0,103090.0,0.40398429]
[1762562061812,0.5166662,103100.0,103090.0,0.40398429]
[1762562063010,0.5166662,103100.0,103090.0,0.25438429]
[1762562063406,0.41961,103100.0,103090.0,0.25438429]
[1762562063611,0.5166662,103100.0,103090.0,0.25438429]
[1762562064813,0.60327711,103100.0,103090.0,0.25438429]
[1762562065510,0.60327711,103100.0,103090.0,0.15732579]
[1762562065911,0.5166662,103100.0,103090.0,0.00014488]
[1762562066508,0.63797481,103100.0,103090.0,0.00014488]
[1762562066817,0.60324496,103100.0,103090.0,0.00014488]
[1762562067007,0.5166662,103100.0,103090.0,0.00014488]
[1762562068403,0.60320086,103100.0,103090.0,0.00014488]
[1762562069816,0.5166662,103100.0,103090.0,0.00014488]
[1762562070317,0.62860725,103100.0,103090.0,0.00014488]
[1762562071108,0.71505379,103100.0,103090.0,0.00014488]
[1762562071304,0.62860725,103100.0,103090.0,0.00014488]
[1762562071517,0.71504175,103100.0,103090.0,0.00014488]
[1762562074023,0.6031007,103100.0,103090.0,0.09721048]
[1762562074226,0.71504175,103100.0,103090.0,0.00014488]
[1762562074520,0.71504175,103100.0,103090.0,0.11208593]
[1762562075118,0.6031007,103100.0,103090.0,0.13356593]
[1762562075318,0.6031007,103100.0,103090.0,0.11208593]
[1762562075823,0.71504175,103100.0,103090.0,0.00014488]
[1762562076425,0.1530451,103080.0,103070.0,0.1185636]
[1762562076623,0.58296222,103080.0,103070.0,0.23050465]
[1762562076824,0.1530545,103070.0,103060.0,0.25276825]
[1762562077025,0.1530545,103070.0,103060.0,0.3647093]
[1762562077211,0.1530545,103070.0,103060.0,0.25276825]
[1762562077925,0.5138545,103070.0,103060.0,0.3647093]
[1762562078836,0.5148545,103070.0,103060.0,0.3647093]
[1762562079532,0.5148545,103070.0,103060.0,0.25276825]
[1762562079734,0.5168545,103070.0,103060.0,0.25276825]
[1762562080229,0.5168545,103070.0,103060.0,0.15568105]
[1762562080434,0.1530639,103060.0,103050.0,0.13342105]
[1762562080633,0.05597,103050.0,103040.0,0.61358705]
[1762562080825,0.05597,103050.0,103020.0,0.4794087]
[1762562080826,0.05597,103030.0,103020.0,0.4794087]
[1762562081024,0.05597,103030.0,103020.0,0.7255508]
[1762562082025,0.05597,103030.0,103010.0,0.61604838]
[1762562082026,0.05676,103020.0,103010.0,0.61604838]
[1762562082226,0.05676,103020.0,103010.0,0.50410733]
[1762562082432,0.05676,103020.0,103010.0,0.61604838]
[1762562082731,0.05676,103020.0,103010.0,0.72798943]
[1762562082927,0.04342,103020.0,103010.0,0.73908943]
[1762562083330,0.05676,103020.0,103010.0,0.73908943]
[1762562083531,0.05776,103020.0,103010.0,0.74508943]
[1762562084130,0.05876,103020.0,103010.0,0.75008943]
[1762562084334,0.05876,103020.0,103010.0,0.73898943]
[1762562084836,0.05876,103020.0,103010.0,0.62704838]
[1762562086236,0.04542,103020.0,103010.0,0.75008943]
[1762562087334,0.05876,103020.0,103010.0,0.75008943]
[1762562088039,0.05876,103020.0,103010.0,0.52620733]
[1762562088229,0.002,103020.0,103010.0,0.75008943]
[1762562088826,0.02423,103020.0,103010.0,0.52620733]
[1762562089022,0.002,103020.0,103010.0,0.75008943]
[1762562089628,0.0435656,103040.0,103030.0,0.1463217]
[1762562089829,0.0435656,103040.0,103030.0,0.7310038]
[1762562090025,0.0569056,103040.0,103030.0,0.7310038]
[1762562090238,0.42769444,103040.0,103030.0,0.25512275]
[1762562090530,0.16401674,103040.0,103030.0,0.13512105]
[1762562090733,0.0011456,103040.0,103030.0,0.73806521]
[1762562090939,0.0011456,103040.0,103030.0,1.09264626]
[1762562091236,0.0011456,103040.0,103030.0,0.98070521]
[1762562091429,0.0233756,103040.0,103030.0,0.98070521]
[1762562091630,0.0445656,103040.0,103030.0,0.62612416]
[1762562091825,0.0579056,103040.0,103030.0,0.62298416]
[1762562092034,0.0579056,103040.0,103030.0,0.73492521]
[1762562092334,0.0579056,103040.0,103030.0,0.73806521]
[1762562093231,0.0579056,103040.0,103030.0,0.26218416]
[1762562094337,0.155028,103040.0,103030.0,0.26218416]
[1762562094541,0.7397101,103040.0,103030.0,0.00706141]
[1762562094725,0.67938065,103040.0,103030.0,0.00706141]
[1762562095535,0.67938065,103040.0,103030.0,0.11900246]
[1762562096928,0.67938065,103040.0,103030.0,0.21613426]
[1762562097331,0.5674396,103040.0,103030.0,0.00706141]
[1762562097538,1.3913217,103040.0,103030.0,0.00706141]
[1762562097737,1.27938065,103040.0,103030.0,0.00706141]
[1762562098240,1.27938065,103040.0,103030.0,0.10419321]
[1762562098443,1.115828,103040.0,103030.0,0.10419321]
[1762562098740,1.22776905,103040.0,103030.0,0.10419321]
[1762562098932,0.1565218,103030.0,103020.0,0.20907605]
[1762562099132,0.5173218,103030.0,103020.0,0.20907605]
[1762562099338,0.62926285,103030.0,103020.0,0.20907605]
[1762562099939,0.05262,103000.0,102990.0,0.25215485]
[1762562100328,0.05262,103000.0,102990.0,0.26547485]
[1762562100540,0.41342,103000.0,102990.0,0.26547485]
[1762562100941,0.41352429,103000.0,102990.0,0.26547485]
[1762562101135,0.41452429,103000.0,102990.0,0.26515485]
[1762562101543,0.41452429,103000.0,102990.0,1.3512159]
[1762562101544,0.00110429,103000.0,102990.0,1.3512159]
[1762562101739,0.04693429,103000.0,102990.0,1.1273338]
[1762562101942,0.04693429,103000.0,102990.0,0.63927485]
[1762562102141,0.00310429,103000.0,102990.0,0.7612159]
[1762562103241,0.00310429,103000.0,102990.0,0.64927485]
[1762562103242,0.04893429,103000.0,102990.0,0.64927485]
[1762562103442,0.02626429,103000.0,102990.0,0.7612159]
[1762562103650,0.00310429,103000.0,102990.0,0.7612159]
[1762562104348,0.00310429,103000.0,102990.0,0.67744858]
[1762562104931,0.0001456,103010.0,103000.0,0.1535301]
[1762562105136,0.40663,103040.0,103030.0,0.04817]
[1762562105336,0.42019,103040.0,103030.0,0.04305]
[1762562105536,0.42019,103040.0,103030.0,0.1535018]
[1762562105741,0.40663,103040.0,103030.0,0.29361658]
[1762562105940,0.41241485,103060.0,103040.0,0.01332]
[1762562106147,0.4067756,103060.0,103050.0,0.29359768]
[1762562106444,0.0001456,103060.0,103050.0,0.65439768]
[1762562106633,0.0001456,103060.0,103050.0,0.89699768]
[1762562106837,0.0001456,103060.0,103050.0,0.65439768]
[1762562107038,0.0011456,103060.0,103050.0,0.7568829]
[1762562107240,0.47180485,103090.0,103080.0,0.04305]
[1762562107743,0.45824485,103090.0,103080.0,0.04305]
[1762562108046,0.47180485,103100.0,103090.0,0.04305]
[1762562108343,0.78099,103100.0,103090.0,0.1401253]
[1762562108643,0.7216,103100.0,103090.0,0.28024008]
[1762562109242,0.41256045,103110.0,103100.0,0.1401159]
[1762562109448,0.4067756,103110.0,103100.0,0.18316478]
[1762562109844,0.4067756,103110.0,103100.0,0.28023068]
[1762562110444,0.04583,103100.0,103090.0,0.28124008]
[1762562110645,0.3841056,103110.0,103100.0,0.1401159]
[1762562110845,0.7309456,103110.0,103100.0,0.28023068]
[1762562111050,0.7767756,103110.0,103100.0,0.28023068]
[1762562111453,0.4159756,103110.0,103100.0,0.28023068]
[1762562111648,0.4179756,103110.0,103100.0,0.28123068]
[1762562112451,0.4179756,103110.0,103100.0,0.18416478]
[1762562112742,0.4179756,103110.0,103100.0,0.28123068]
[1762562113153,0.3701456,103110.0,103100.0,0.28123068]
[1762562114151,0.7767756,103110.0,103100.0,0.04405]
[1762562114350,0.8738321,103110.0,103100.0,0.02239]
[1762562114749,0.8738321,103110.0,103100.0,0.001]
[1762562114750,0.92544695,103110.0,103100.0,0.001]
[1762562115554,0.8738321,103110.0,103100.0,0.001]
[1762562115749,0.8738321,103110.0,103090.0,0.04305]
[1762562115750,0.05939,103100.0,103090.0,0.04305]
[1762562115955,0.05939,103100.0,103080.0,0.0001456]
[1762562115956,0.1429053,103090.0,103080.0,0.0001456]
[1762562116152,0.8837053,103090.0,103080.0,0.0431956]
[1762562116347,0.78663,103090.0,103080.0,0.0565156]
[1762562116550,0.8837053,103090.0,103080.0,0.19663038]
[1762562116947,0.78663,103090.0,103080.0,0.19663038]
[1762562117354,0.8837053,103090.0,103080.0,0.0431956]
[1762562117656,0.8837053,103090.0,103080.0,0.0001456]
[1762562118655,0.8837053,103090.0,103080.0,0.0011456]
[1762562120358,0.8837053,103090.0,103080.0,0.0982303]
[1762562120751,0.8837053,103090.0,103080.0,0.1196203]
[1762562121351,0.78663,103090.0,103080.0,0.0982303]
[1762562121651,0.1003436,103060.0,103050.0,0.153483]
[1762562121852,0.8411436,103060.0,103050.0,0.153483]
[1762562122047,0.8411436,103060.0,103050.0,0.05637]
[1762562122355,0.8411436,103060.0,103050.0,0.03471]
[1762562122754,0.8421436,103060.0,103050.0,0.04371]
[1762562123451,0.8421436,103060.0,103050.0,0.02232]
[1762562123756,0.8421436,103060.0,103050.0,0.009]
[1762562124854,0.98225838,103060.0,103050.0,0.009]
[1762562125251,0.100353,103050.0,103040.0,0.0001456]
[1762562125559,0.771153,103050.0,103040.0,0.0001456]
[1762562126159,0.771153,103050.0,103040.0,0.0134656]
[1762562126358,0.773153,103050.0,103040.0,0.164018]
[1762562126559,0.0971318,103030.0,103020.0,0.0134027]
[1762562126759,0.33,103030.0,103020.0,0.29360878]
[1762562128453,0.33,103030.0,103020.0,0.153494]
[1762562128656,0.7889319,103030.0,103020.0,0.19846748]
[1762562128858,0.331,103030.0,103020.0,0.29560878]
[1762562129358,0.331,103030.0,103020.0,0.65640878]
[1762562129749,0.331,103030.0,103020.0,0.29560878]
[1762562130359,0.331,103030.0,103020.0,0.36088772]
[1762562130664,0.331,103030.0,103020.0,0.26374642]
[1762562130962,0.331,103030.0,103020.0,0.36088772]
[1762562131558,0.331,103030.0,103020.0,0.72168772]
[1762562133068,0.4281319,103030.0,103020.0,0.36088772]
[1762562133760,0.4281319,103030.0,103020.0,0.0583527]
[1762562133956,0.7889319,103030.0,103020.0,0.26374642]
[1762562134159,0.4281319,103030.0,103020.0,0.26374642]
[1762562134367,0.331,103030.0,103020.0,0.36088772]
[1762562134760,0.331,103030.0,103020.0,0.155494]
[1762562134964,0.331,103030.0,103020.0,0.36088772]
[1762562135161,0.4281319,103030.0,103020.0,0.36088772]
[1762562135364,0.331,103030.0,103020.0,0.36088772]
[1762562136076,0.4281318,103030.0,103020.0,0.36088772]
[1762562136463,0.4281318,103030.0,103020.0,0.51048772]
[1762562136769,0.4281318,103030.0,103020.0,0.41334642]
[1762562136968,0.331,103030.0,103020.0,0.51048762]
[1762562137463,0.331,103030.0,103020.0,0.36088762]
[1762562137664,0.331,103030.0,103020.0,0.72168762]
[1762562138268,0.296,103030.0,103020.0,0.72168762]
[1762562138469,0.296,103030.0,103020.0,0.96432762]
[1762562139169,0.261,103030.0,103020.0,0.96432762]
[1762562139568,0.261,103030.0,103020.0,0.72168762]
[1762562139970,0.261,103030.0,103020.0,0.96432762]
[1762562143174,0.261,103030.0,103020.0,0.72168762]
[1762562143376,0.261,103030.0,103020.0,0.96432762]
[1762562144070,0.261,103030.0,103020.0,0.72168762]
[1762562144268,0.28244,103030.0,103020.0,0.72168762]
[1762562147174,0.30426,103030.0,103020.0,0.72168762]
[1762562148270,0.30426,103030.0,103020.0,0.87128762]
[1762562148775,0.30426,103030.0,103020.0,0.72168762]
[1762562148969,0.31803,103030.0,103020.0,0.5162939]
[1762562149178,0.31803,103030.0,103020.0,0.72168762]
[1762562149376,0.30426,103030.0,103020.0,0.72168762]
[1762562152766,0.261,103030.0,103020.0,0.72168762]
[1762562152962,0.261,103030.0,103020.0,0.74727384]
[1762562154372,0.261,103030.0,103020.0,0.98991384]
[1762562156376,0.261,103030.0,103020.0,0.98991404]
[1762562158678,0.261,103030.0,103020.0,0.74727404]
[1762562160977,0.30514,103030.0,103020.0,0.74727404]
[1762562161380,0.31731,103030.0,103020.0,0.72168762]
[1762562161581,0.31731,103030.0,103020.0,0.70836762]
[1762562161774,0.4144418,103030.0,103020.0,0.1946327]
[1762562161975,0.7752418,103030.0,103020.0,0.1946327]
[1762562162278,0.84435892,103030.0,103020.0,0.1516827]
[1762562163178,0.7752418,103030.0,103020.0,0.293304]
[1762562163680,0.7752418,103030.0,103020.0,0.1961627]
[1762562163887,0.7752418,103030.0,103020.0,0.1516827]
[1762562165087,0.67811,103030.0,103020.0,0.1516827]
[1762562165382,0.7752418,103030.0,103020.0,0.270834]
[1762562165588,0.67811,103030.0,103020.0,0.293304]
[1762562165886,0.31731,103030.0,103020.0,0.36188772]
[1762562166390,0.66594,103030.0,103020.0,0.36188772]
[1762562167089,0.7757319,103030.0,103020.0,0.36188772]
[1762562167593,0.6786,103030.0,103020.0,0.36188772]
[1762562168091,0.7757318,103030.0,103020.0,0.36188772]
[1762562168392,0.7757318,103030.0,103020.0,0.156494]
[1762562168591,0.7757318,103030.0,103020.0,0.36188772]
[1762562168894,0.6786,103030.0,103020.0,0.36188772]
[1762562171488,0.66594,103030.0,103020.0,0.51148772]
[1762562173587,0.6786,103030.0,103020.0,0.51148772]
[1762562175188,0.7757318,103030.0,103020.0,0.51148772]
[1762562175890,0.6786,103030.0,103020.0,0.51148772]
[1762562176289,0.6786,103030.0,103020.0,0.1516827]
[1762562176490,0.6786,103030.0,103020.0,0.2089527]
[1762562176694,0.6786,103030.0,103020.0,0.51148762]
[1762562176892,0.66594,103030.0,103020.0,0.51148762]
[1762562177391,0.66594,103030.0,103020.0,0.36188762]
[1762562178792,0.30514,103030.0,103020.0,0.36188762]
[1762562179194,0.30514,103030.0,103020.0,0.72268762]
[1762562179597,0.37425712,103030.0,103020.0,0.36188762]
[1762562180799,0.38691712,103030.0,103020.0,0.36188762]
[1762562180993,0.48404892,103030.0,103020.0,0.25195642]
[1762562181193,0.84484892,103030.0,103020.0,0.25195642]
[1762562181791,0.84484892,103030.0,103020.0,0.0465627]
[1762562182094,0.84484892,103030.0,103020.0,0.0020827]
[1762562183301,0.84484892,103030.0,103020.0,0.1516827]
[1762562184404,0.84484892,103030.0,103020.0,0.1736927]
[1762562184803,0.84484892,103030.0,103020.0,0.2933039]
[1762562185996,0.84484892,103030.0,103020.0,0.1961627]
[1762562186190,0.84484892,103030.0,103020.0,0.293304]
[1762562186596,0.84484892,103030.0,103020.0,0.1961627]
[1762562186803,0.37425712,103030.0,103020.0,0.51256772]
[1762562187106,0.37425712,103030.0,103020.0,0.87336772]
[1762562189102,0.37425712,103030.0,103020.0,0.72376772]
[1762562191010,0.38658712,103030.0,103020.0,0.72376772]
[1762562191192,0.84451892,103030.0,103020.0,0.0240927]
[1762562191499,0.84451892,103030.0,103020.0,0.0020827]
[1762562191892,0.84451892,103030.0,103020.0,0.0242427]
[1762562192096,0.84451892,103030.0,103020.0,0.0473727]
[1762562192296,0.84451892,103030.0,103020.0,0.18745644]
[1762562192491,0.84451892,103030.0,103020.0,0.0020827]
[1762562192492,0.7754018,103030.0,103020.0,0.0020827]
[1762562193406,0.7754018,103030.0,103020.0,0.14216644]
[1762562193705,0.7754018,103030.0,103020.0,0.0020827]
[1762562194004,0.7754018,103030.0,103020.0,0.14216644]
[1762562194196,0.84457734,103030.0,103020.0,0.14216644]
[1762562194394,0.84457734,103030.0,103020.0,0.0020827]
[1762562194701,0.84457734,103030.0,103000.0,0.4712731]
[1762562194702,0.1472107,103010.0,103000.0,0.0971531]
[1762562194892,0.1540301,103000.0,102990.0,0.54617374]
[1762562195098,0.55318953,103000.0,102990.0,0.18537374]
[1762562195293,0.55318953,103000.0,102990.0,0.28254324]
[1762562195493,0.55327253,103000.0,102990.0,0.28254324]
[1762562195698,0.45611243,103000.0,102990.0,0.28254324]
[1762562196300,0.386953,103000.0,102990.0,0.28254324]
[1762562196496,0.386953,103000.0,102990.0,0.25941324]
[1762562196701,0.386953,103000.0,102990.0,0.27041324]
[1762562196702,0.45711243,103000.0,102990.0,0.27041324]
[1762562196907,0.45711243,103000.0,102990.0,0.29354324]
[1762562197295,0.387953,103000.0,102990.0,0.29354324]
[1762562197498,0.389953,103000.0,102990.0,0.29354324]
[1762562198299,0.389953,103000.0,102990.0,0.26558392]
[1762562199801,0.39967026,103000.0,102990.0,0.26558392]
[1762562202103,0.39967026,103000.0,102990.0,0.22029392]
[1762562202312,0.376343,103000.0,102990.0,0.75003834]
[1762562207610,0.354843,103000.0,102990.0,0.75003834]
[1762562208112,0.375923,103000.0,102990.0,0.75003834]
[1762562209513,0.44113151,103000.0,102990.0,0.75003834]
[1762562209714,0.44113151,103000.0,102990.0,0.52791442]
[1762562209918,0.44113151,103000.0,102990.0,0.62508402]
[1762562210715,0.44113151,103000.0,102990.0,0.26428402]
[1762562213509,0.53829161,103000.0,102990.0,0.16711442]
[1762562214014,0.53829161,103000.0,102990.0,0.14559442]
[1762562214409,0.53829161,103000.0,102990.0,0.24276402]
[1762562214610,0.53829161,103000.0,102990.0,0.26428402]
[1762562215010,0.44113151,103000.0,102990.0,0.27711402]
[1762562215815,0.44113151,103000.0,102990.0,0.26428402]
[1762562216718,0.53829161,103000.0,102990.0,0.26428402]
[1762562218020,0.4865331,103000.0,102990.0,0.26428402]
[1762562218216,0.4865331,103000.0,102960.0,0.22318532]
[1762562218217,0.02244,102970.0,102960.0,0.12336559]
[1762562218516,0.05098,102960.0,102950.0,0.59343752]
[1762562218818,0.36418,102960.0,102950.0,0.74102194]
[1762562219013,0.34244,102960.0,102950.0,0.74102194]
[1762562219514,0.36418,102960.0,102950.0,0.62889752]
[1762562219719,0.3773,102960.0,102950.0,0.5167731]
[1762562219914,0.36418,102960.0,102950.0,0.62889752]
[1762562220117,0.36618,102960.0,102950.0,0.53169442]
[1762562220311,0.3793,102960.0,102950.0,0.62890172]
[1762562220706,0.3793,102960.0,102950.0,0.64190172]
[1762562220918,0.3803,102960.0,102950.0,0.64190172]
[1762562221219,0.36718,102960.0,102950.0,0.75402614]
[1762562221520,0.34544,102960.0,102950.0,0.75402614]
[1762562221823,0.36718,102960.0,102950.0,0.75402614]
[1762562225813,0.3803,102960.0,102950.0,0.75402614]
[1762562226013,0.36718,102960.0,102950.0,0.75402614]
[1762562226719,0.34544,102960.0,102950.0,0.75402614]
[1762562226923,0.323,102960.0,102950.0,0.75402614]
[1762562227217,0.324,102960.0,102950.0,0.74402614]
[1762562227421,0.34644,102960.0,102950.0,0.74402614]
[1762562227722,0.36818,102960.0,102950.0,0.74402614]
[1762562228619,0.324,102960.0,102950.0,0.74402614]
[1762562228918,0.34644,102960.0,102950.0,0.74402614]
[1762562229222,0.36818,102960.0,102950.0,0.74402614]
[1762562229824,0.34644,102960.0,102950.0,0.74402614]
[1762562230018,0.36818,102960.0,102950.0,0.74402614]
[1762562230225,0.3813,102960.0,102950.0,0.74402614]
[1762562230424,0.36818,102960.0,102950.0,0.74402614]
[1762562230722,0.3813,102960.0,102950.0,0.63190172]
[1762562230923,0.36818,102960.0,102950.0,0.74402614]
[1762562231424,0.3813,102960.0,102950.0,0.74402614]
[1762562232119,0.36818,102960.0,102950.0,0.74402614]
[1762562233128,0.34644,102960.0,102950.0,0.74402614]
[1762562233620,0.36818,102960.0,102950.0,0.74402614]
[1762562236226,0.36818,102960.0,102950.0,0.5197773]
[1762562236528,0.36818,102960.0,102950.0,0.63190172]
[1762562237227,0.36818,102960.0,102950.0,0.74402614]
[1762562237826,0.36618,102960.0,102950.0,0.74102614]
[1762562238025,0.36718,102960.0,102950.0,0.74302614]
[1762562238615,0.36518,102960.0,102950.0,0.74302614]
[1762562238916,0.3803,102960.0,102950.0,0.40767]
[1762562239113,0.8382979,102960.0,102950.0,0.15899442]
[1762562240322,0.8382979,102960.0,102950.0,0.11412442]
[1762562240515,0.8382979,102960.0,102950.0,0.21133172]
[1762562240725,0.7411,102960.0,102950.0,0.25620172]
[1762562241229,0.3803,102960.0,102950.0,0.25620172]
[1762562241528,0.7411,102960.0,102950.0,0.25620172]
[1762562241828,0.8382979,102960.0,102950.0,0.002]
[1762562242027,0.8382979,102960.0,102950.0,0.13743442]
[1762562242225,1.00227363,102960.0,102950.0,0.11412442]
[1762562242524,1.01967129,102960.0,102950.0,0.002]
[1762562243325,1.01967129,102960.0,102940.0,0.00503069]
[1762562243326,0.0972073,102950.0,102940.0,0.00503069]
[1762562243530,0.96938069,102950.0,102940.0,0.11715511]
[1762562243829,0.85725627,102950.0,102940.0,0.11715511]
[1762562244020,0.85725627,102950.0,102940.0,0.13105511]
[1762562244830,0.96938069,102950.0,102940.0,0.01893069]
[1762562245422,0.97038069,102950.0,102940.0,0.01893069]
[1762562245717,0.97138069,102950.0,102940.0,0.02093069]
[1762562245923,0.97138069,102950.0,102940.0,0.00703069]
[1762562246326,0.98865576,102950.0,102940.0,6.9e-07]
[1762562246723,0.90222126,102950.0,102940.0,6.9e-07]
[1762562246924,0.97111122,102950.0,102940.0,0.26755191]
[1762562247130,0.8589868,102950.0,102940.0,0.26755191]
[1762562247327,0.97111122,102950.0,102940.0,0.01332069]
[1762562247536,0.97111122,102950.0,102940.0,6.9e-07]
[1762562247826,0.97111122,102950.0,102940.0,0.09721749]
[1762562248032,0.97111122,102950.0,102940.0,0.15542749]
[1762562248228,0.97111122,102950.0,102940.0,6.9e-07]
[1762562249124,0.90222126,102950.0,102940.0,6.9e-07]
[1762562249325,1.10078018,102950.0,102940.0,6.9e-07]
[1762562249527,1.10069064,102950.0,102940.0,6.9e-07]
[1762562249721,1.10078847,102950.0,102940.0,6.9e-07]
[1762562249933,1.10069064,102950.0,102940.0,6.9e-07]
[1762562250121,1.10081675,102950.0,102940.0,6.9e-07]
[1762562250327,1.1007748,102950.0,102940.0,6.9e-07]
[1762562250529,1.01425614,102950.0,102940.0,6.9e-07]
[1762562251228,0.90213172,102950.0,102940.0,6.9e-07]
[1762562251535,0.0972168,102940.0,102930.0,0.0972229]
[1762562251736,0.96912503,102940.0,102930.0,0.0972229]
[1762562252238,0.96912503,102940.0,102930.0,0.1105429]
[1762562252533,1.00585092,102940.0,102930.0,0.0972229]
[1762562252840,0.0972262,102930.0,102920.0,0.1111283]
[1762562253134,0.74255593,102930.0,102920.0,0.1560183]
[1762562253334,0.69088845,102930.0,102920.0,0.26831925]
[1762562253740,0.78811465,102930.0,102920.0,0.26831925]
[1762562253931,0.33008845,102930.0,102920.0,0.26831925]
[1762562254430,0.33208845,102930.0,102920.0,0.26831925]
[1762562254638,0.33208845,102930.0,102920.0,0.62911925]
[1762562254937,0.33408845,102930.0,102920.0,0.62911925]
[1762562255332,0.33408845,102930.0,102920.0,0.26831925]
[1762562255635,0.43131465,102930.0,102920.0,0.17109095]
[1762562255828,0.43131465,102930.0,102920.0,0.26832665]
[1762562256432,0.79211465,102930.0,102920.0,0.05879]
[1762562256736,0.79211465,102930.0,102920.0,0.1560257]
[1762562257035,0.33408845,102930.0,102920.0,0.26832665]
[1762562257536,0.43131465,102930.0,102920.0,0.26832665]